Cogmind - Beta 12 @@@ ROGUE MODE // 2023.04.30 @ 10:11:42 Player: kawyua Result: Self-destructed Performance ------------- Evolutions (5) 2500 Regions Visited (11) 2200 Robots Destroyed (91) 455 Value Destroyed (3208) 3208 Prototype IDs (13) 260 Alien Tech Used (1) 200 Bonus (1401) 1401 TOTAL SCORE: 10224 Bonus ------- Follower Combat Kills 682 Met Data Miner 300 Met Imprinter 300 Was Imprinted 300 Friendly Fire -181 Cogmind --------- Core Integrity 980/1000 Matter 90/300 Energy 63/100 System Corruption 0% Temperature Cool (0) Movement Rolling (100) Location -5/Factory Parts ------- > --- POWER (1) -------- (None) > --- PROPULSION (4) --- Compact Wheel Xenon Bombardment Thruster > --- UTILITY (9) ------ Improved Sensor Array Transmission Jammer Hacking Suite Hacking Suite Mapping Drone Bay (3/3) > --- WEAPON (4) ------- (None) > --- INVENTORY (5) ---- Micro Fission Core Armored Treads Medium Treads Neutron Cannon Long-range Missile Launcher Peak State ------------ > --- POWER ------------ Reinforced Deuterium Engine > --- PROPULSION ------- Improved Treads Medium Treads Compact Wheel Compact Wheel > --- UTILITY ---------- Huge Storage Unit Improved Sensor Array Improved Sensor Array Transmission Jammer Makeshift Armor Plating Improved Focal Shield Improved Hardlight Generator Mapping Drone Bay > --- WEAPON ----------- Neutron Cannon Battle Rifle Railgun Long-range Missile Launcher > --- INVENTORY -------- Armored Treads Armored Treads Medium Treads Compact Wheel Xenon Bombardment Thruster High-capacity Matter Pod Hacking Suite Hacking Suite Hacking Suite System Restoration Module Advanced Field Recycling Unit Heart of Steel Barrage Gun KE Penetrator Assault Cannon Assault Cannon Assault Cannon Long-range Missile Launcher Greatsword CR-A16's Pointy Stick GAL Module [Rating: 75] Favorites ----------- Power Reinforced Ion Engine Engine Reinforced Ion Engine Propulsion Improved Treads Treads Improved Treads Leg Aluminum Leg Wheel Compact Wheel Flight Unit Xenon Bombardment Thruster Utility Large Storage Unit Device Improved Sensor Array Storage Large Storage Unit Processor Improved Signal Interpreter Hackware Hacking Suite Protection Hardened Light Armor Plating Weapon Heavy Assault Rifle Energy Gun Small Laser Energy Cannon Beam Cannon Ballistic Gun Heavy Assault Rifle Ballistic Cannon Assault Cannon Launcher Long-range Missile Launcher Special Weapon Mining Laser Impact Weapon Flail Special Melee Weapon Datajack Build | -11 -10 -9 -9 -7 -6 -6 -6 -6 -6 -5 -5 ------- Run | Jun Mat Mat Min Zio Pro Fac Low Low Dat Pro Fac Slots Evolved 10 | . . 2 . . . 6 . . . . 2 Power . | . . . . . . . . . . . . Propulsion 2 | . . . . . . 2 . . . . . Utility 6 | . . . . . . 4 . . . . 2 Weapon 2 | . . 2 . . . . . . . . . Parts Attached 123 | 8 13 26 . 7 2 26 6 4 . 21 10 Power 8 | 2 1 2 . . 1 1 . . . . 1 Engine 8 | 2 1 2 . . 1 1 . . . . 1 Core . | . . . . . . . . . . . . Reactor . | . . . . . . . . . . . . Propulsion 37 | 2 2 6 . 2 1 9 . 4 . 8 3 Treads 19 | 2 . 5 . 1 1 4 . 2 . 4 . Leg 2 | . 2 . . . . . . . . . . Wheel 15 | . . 1 . 1 . 5 . 2 . 4 2 Hover . | . . . . . . . . . . . . Flight 1 | . . . . . . . . . . . 1 Utility 34 | 2 3 4 . 1 . 12 6 . . 3 3 Device 17 | 1 1 1 . . . 7 3 . . 3 1 Storage 5 | 1 2 . . 1 . 1 . . . . . Processor 1 | . . . . . . 1 . . . . . Hackware 2 | . . . . . . . . . . . 2 Protection 9 | . . 3 . . . 3 3 . . . . Artifact . | . . . . . . . . . . . . Weapon 44 | 2 7 14 . 4 . 4 . . . 10 3 Energy Gun 3 | 1 1 1 . . . . . . . . . Energy Cannon 3 | . 1 . . . . . . . . 1 1 Ballistic Gun 21 | 1 2 7 . 2 . 2 . . . 6 1 Ballistic Cannon 5 | . . 1 . 2 . 2 . . . . . Launcher 6 | . . 2 . . . . . . . 3 1 Special Weapon 3 | . 3 . . . . . . . . . . Impact Weapon 2 | . . 2 . . . . . . . . . Slashing Weapon . | . . . . . . . . . . . . Piercing Weapon . | . . . . . . . . . . . . Special Melee Weapon 1 | . . 1 . . . . . . . . . Unidentified Prototypes 3 | . . . . . . . 2 . . 1 . Parts Lost 11 | . 2 3 . . 2 1 . . . 2 1 Power 2 | . . 1 . . 1 . . . . . . Propulsion 1 | . . . . . . 1 . . . . . Utility 4 | . . 2 . . . . . . . 1 1 Weapon 4 | . 2 . . . 1 . . . . 1 . Highest Loss Streak 2 | . 1 1 . . 2 1 . . . 1 1 To Critical Strikes . | . . . . . . . . . . . . Average Slot Usage (%) 95 | . 99 98 100 96 83 88 99 100 100 96 87 Engine 9 | . 14 10 11 11 8 3 6 6 6 6 4 Treads 14 | . 9 15 22 19 11 12 12 12 12 19 9 Leg 2 | . 18 1 . . . . . . . . . Wheel 6 | . . 4 . 2 11 13 12 11 12 5 10 Device 9 | . 14 2 . . . 13 24 25 25 24 29 Storage 9 | . 14 11 11 10 11 6 6 6 6 6 4 Processor 1 | . . . . . . 3 6 6 6 3 . Protection 5 | . . 8 11 8 . 6 5 6 6 6 4 Ballistic Gun 22 | . 14 30 33 35 19 13 12 12 12 9 10 Ballistic Cannon 9 | . . 5 11 8 22 13 12 12 12 10 1 Naked Turns . | . . . . . . . . . . . . Heaviest Build 245 | 13 32 49 49 227 230 245 130 130 130 136 140 Greatest Support 96 | 40 40 46 46 51 28 96 32 32 32 94 32 Greatest Overweight (x) 19 | . 2 3 1 18 19 7 4 4 4 4 4 Average Overweight (x) 4 | . . 1 1 4 18 5 3 4 4 2 3 Largest Inventory Capacity 35 | 8 15 15 15 35 35 35 25 25 25 25 25 Average Capacity 22 | 7 14 15 15 20 35 32 25 25 25 25 22 Most Carried 35 | 8 15 15 15 27 35 35 25 25 25 25 25 Average Carried 21 | 6 13 14 15 17 32 30 24 24 25 24 21 Final Capacity 35 | 8 15 15 15 35 35 25 25 25 25 25 5 Final Carried 35 | 8 15 15 15 27 35 25 25 25 25 25 5 Class Distribution -------------------- 43% | Scavenger-Tank 19% | Hauler-Gunner 18% | Scavenger-Mutant 8% | Mutant 3% | Scavenger-Skirmisher Dominant Class ---------------- Mutant | -10/Materials Scavenger-Tank | -9/Materials Scavenger-Tank | -9/Mines Scavenger-Tank | -7/Zion Hauler-Gunner | -6/Proximity Caves Scavenger-Skirmisher | -6/Factory Scavenger-Mutant | -6/Lower Caves Scavenger-Tank | -6/Lower Caves Scavenger-Tank | -6/Data Miner Scavenger-Tank | -5/Proximity Caves Scavenger-Mutant | -5/Factory Resources | -11 -10 -9 -9 -7 -6 -6 -6 -6 -6 -5 -5 ----------- Run | Jun Mat Mat Min Zio Pro Fac Low Low Dat Pro Fac Matter Collected 3855 | 265 616 976 8 162 331 512 80 176 . 714 15 Remotely . | . . . . . . . . . . . . Salvage Created 3687 | 43 616 1328 . . 532 401 11 74 . 625 57 Parts 208 | 10 29 84 . . 28 15 2 6 . 29 5 Haulers Intercepted 2 | . 1 1 . . . . . . . . . Recyclers Shooed 2 | 1 . . . . . 1 . . . . . Parts Field Recycled . | . . . . . . . . . . . . Retrieved Matter . | . . . . . . . . . . . . Parts Self-Destructed 83 | . . . . 4 34 . 7 6 . 32 . Prevented 7 | . . . . . 7 . . . . . . Kills | -11 -10 -9 -9 -7 -6 -6 -6 -6 -6 -5 -5 ------- Run | Jun Mat Mat Min Zio Pro Fac Low Low Dat Pro Fac Combat Hostiles Destroyed 75 | . 14 27 . . 8 3 1 2 . 18 2 Melee 4 | . . 4 . . . . . . . . . Guns 41 | . 12 20 . . 4 . . 1 . 4 . Cannons 18 | . 2 2 . . 4 3 1 1 . 5 . AOE 12 | . . 1 . . . . . . . 9 2 Classes Destroyed 16 | 1 4 4 . . 4 . . 1 . 2 . Builder 1 | . . 1 . . . . . . . . . Tunneler 3 | 3 . . . . . . . . . . . Hauler 2 | . 1 1 . . . . . . . . . Recycler 4 | . 1 1 . . . 2 . . . . . Mechanic 1 | . . . . . 1 . . . . . . Operator 2 | . . 2 . . . . . . . . . Drone 2 | . . . . . . . . . . 2 . Watcher 2 | . . 1 . . . 1 . . . . . Swarmer 11 | . 3 . . . . 2 1 . . 5 . Grunt 45 | . 11 20 . . 5 . . . . 9 . Brawler 2 | . . . . . 1 1 . . . . . Duelist 1 | . . . . . 1 . . . . . . Sentry 9 | . . 7 . . 1 . . 1 . . . Hunter 2 | . . . . . . . . . . 2 . Programmer 3 | . . . . . . . . 1 . . 2 Mutant 1 | . . . . . 1 . . . . . . Best Kill Streak 6 | 2 5 6 . . 4 3 1 1 . 5 2 Combat Bots Only 6 | . 5 6 . . 4 3 1 1 . 5 2 Max Kills in Single Turn 2 | 1 1 2 . . 2 1 1 1 . 2 1 Gunslinging 1 | . . 1 . . . . . . . . . Exploded 1 | . . 1 . . . . . . . 1 1 Melee 1 | . . 1 . . . . . . . . . Uniques/NPCs Destroyed . | . . . . . . . . . . . . Combat | -11 -10 -9 -9 -7 -6 -6 -6 -6 -6 -5 -5 -------- Run | Jun Mat Mat Min Zio Pro Fac Low Low Dat Pro Fac Damage Taken 3983 | . 526 1034 . . 812 336 27 29 . 1131 88 Core 497 | . 73 168 . . 83 65 . . . 88 20 Absorbed by Shields 365 | . . 26 . . . 24 . 63 . 252 . Regen/Repaired (Parts) 5 | . . . . 5 . . . . . . . Core Remaining (%) 72 | 100 70 . . . 37 . . . . 82 . Volleys Fired 201 | 12 59 54 . 3 21 13 5 4 . 26 4 Largest 4 | 2 2 4 . 4 4 4 4 4 . 4 4 Hottest 156 | 60 100 113 . 92 138 140 141 141 . 156 131 Shots Fired 598 | 24 106 195 . 9 69 52 18 16 . 96 13 Gun 407 | 24 81 171 . 8 31 26 8 8 . 41 9 Cannon 164 | . 18 19 . 1 38 26 10 8 . 43 1 Launcher 20 | . . 5 . . . . . . . 12 3 Special 7 | . 7 . . . . . . . . . . Kinetic 519 | 12 74 176 . 9 69 52 18 16 . 84 9 Thermal 59 | 12 32 14 . . . . . . . . 1 Explosive 20 | . . 5 . . . . . . . 12 3 Electromagnetic . | . . . . . . . . . . . . Robot Hit Streak 26 | 4 21 10 . . 7 8 2 15 . 26 2 Robot Miss Streak 7 | 2 2 3 . . 3 7 5 . . 3 5 Penetration Max 1 | . . . . . . . . . . 1 . Secondary Targets 2 | . 1 1 . . . . . . . . . Max Gunslinging Chain 1 | . 1 1 . . . . . . . . . Shots Hit Robots 362 | 16 78 134 . . 38 24 2 13 . 52 5 Core Hits 179 | 6 31 54 . . 22 12 2 4 . 44 4 Critical Kills . | . . . . . . . . . . . . Critical Parts Destroyed 2 | . . 2 . . . . . . . . . Critical Strikes 6 | . . 3 . . . . . 1 . 2 . Destroy 2 | . . 2 . . . . . . . . . Blast 3 | . . . . . . . . 1 . 2 . Smash 1 | . . 1 . . . . . . . . . Melee Attacks 13 | . . 13 . . . . . . . . . Impact 11 | . . 11 . . . . . . . . . Slashing . | . . . . . . . . . . . . Piercing . | . . . . . . . . . . . . Sneak Attacks 2 | . . 2 . . . . . . . . . Combat Hostiles . | . . . . . . . . . . . . Follow-up Attacks . | . . . . . . . . . . . . Damage Inflicted 7400 | 150 820 2439 . . 781 459 34 270 . 2249 198 Guns 3666 | 150 524 1586 . . 275 212 13 125 . 699 82 Cannons 1904 | . 296 191 . . 506 247 21 145 . 498 . Explosions 1524 | . . 356 . . . . . . . 1052 116 Melee 306 | . . 306 . . . . . . . . . Ramming . | . . . . . . . . . . . . Kinetic 4985 | 41 468 1653 . . 781 459 34 270 . 1197 82 Thermal 585 | 109 352 124 . . . . . . . . . Explosive 1524 | . . 356 . . . . . . . 1052 116 Electromagnetic . | . . . . . . . . . . . . Impact 306 | . . 306 . . . . . . . . . Slashing . | . . . . . . . . . . . . Piercing . | . . . . . . . . . . . . Highest Corruption . | . . . . . . . . . . . . Average Corruption . | . . . . . . . . . . . . Corruption Purged . | . . . . . . . . . . . . Corruption Blocked . | . . . . . . . . . . . . Overload Shots . | . . . . . . . . . . . . Overflow Damage 93 | . 1 46 . . 1 10 . . . 35 . Projectiles 34 | . 1 . . . 1 10 . . . 22 . Explosions 22 | . . 9 . . . . . . . 13 . Melee 37 | . . 37 . . . . . . . . . Knockbacks 16 | . . 3 . . 8 1 . 1 . 3 . Impact 1 | . . 1 . . . . . . . . . Kinetic 15 | . . 2 . . 8 1 . 1 . 3 . Secondary . | . . . . . . . . . . . . Self-Inflicted Damage 176 | . . 95 . . . . . . . 54 27 Shots 9 | . . 4 . . . . . . . 3 2 Rammed . | . . . . . . . . . . . . Targets Rammed . | . . . . . . . . . . . . Kicked . | . . . . . . . . . . . . Crushed . | . . . . . . . . . . . . Highest Temperature 456 | 40 186 350 . 48 345 180 150 232 . 456 137 Average Temperature 94 | 18 37 77 . 23 152 59 83 100 . 167 66 Received Heat Transfer 1401 | . 297 482 . . 228 . . 7 . 387 . Effects 7 | . . 2 . . 3 . . . . 2 . Shutdowns 1 | . . . . . 1 . . . . . . Energy Bleed 1 | . . 1 . . . . . . . . . Interference 2 | . . . . . 1 . . . . 1 . Matter Decay 1 | . . . . . 1 . . . . . . Short Circuit 2 | . . 1 . . . . . . . 1 . Siege Activations . | . . . . . . . . . . . . Robots Corrupted . | . . . . . . . . . . . . Combat Hostiles . | . . . . . . . . . . . . Parts Fried 1 | . . . . . 1 . . . . . . Impact Corruptions 1 | . . 1 . . . . . . . . . Robots Melted . | . . . . . . . . . . . . Combat Hostiles . | . . . . . . . . . . . . Parts Melted . | . . . . . . . . . . . . Heat Transferred 1279 | 250 754 275 . . . . . . . . . Parts Sabotaged . | . . . . . . . . . . . . Parts Stolen . | . . . . . . . . . . . . Parts Stripped . | . . . . . . . . . . . . Power Chain Reactions . | . . . . . . . . . . . . Missiles Intercepted . | . . . . . . . . . . . . Alert | -11 -10 -9 -9 -7 -6 -6 -6 -6 -6 -5 -5 ------- Run | Jun Mat Mat Min Zio Pro Fac Low Low Dat Pro Fac Peak Influence 402 | 15 191 350 79 . . 81 . . . . 402 Initial 301 | . 9 12 79 . . 9 . . . . 301 Average 106 | 9 58 143 79 . . 23 . . . . 323 Maximum Alert Level 2 | . . 1 . . . . . . . . 2 Low Security (%) 84 | 100 100 79 100 . . 100 . . . . . Level 1 14 | . . 20 . . . . . . . . 78 Level 2 1 | . . . . . . . . . . . 21 Level 3 . | . . . . . . . . . . . . Level 4 . | . . . . . . . . . . . . Level 5 . | . . . . . . . . . . . . High Security . | . . . . . . . . . . . . Max Security . | . . . . . . . . . . . . Squads Dispatched 9 | . 2 3 . . 1 . . . . 1 2 Investigation 4 | . 2 1 . . . . . . . . 1 Extermination 1 | . . . . . . . . . . . 1 Reinforcement 2 | . . 2 . . . . . . . . . Assault 2 | . . . . . 1 . . . . 1 . Garrison . | . . . . . . . . . . . . Intercept . | . . . . . . . . . . . . Searches Triggered . | . . . . . . . . . . . . Construction Impeded . | . . . . . . . . . . . . Haulers Reinforced . | . . . . . . . . . . . . Active Scanning Responses . | . . . . . . . . . . . . Cargo Convoy Interrupts . | . . . . . . . . . . . . Stealth | -11 -10 -9 -9 -7 -6 -6 -6 -6 -6 -5 -5 --------- Run | Jun Mat Mat Min Zio Pro Fac Low Low Dat Pro Fac Distress Signals 6 | . 1 5 . . . . . . . . . Communications Jammed 1 | . . . . . . . . . . 1 . Distress Signals . | . . . . . . . . . . . . Times Spotted 134 | . 26 47 . . 21 5 1 2 . 29 3 Peak Tracking Total 6 | . 6 6 . . 6 3 3 1 . 6 1 Tactical Retreats 8 | . . 1 . . 4 . . . . 3 . Traps | -11 -10 -9 -9 -7 -6 -6 -6 -6 -6 -5 -5 ------- Run | Jun Mat Mat Min Zio Pro Fac Low Low Dat Pro Fac Traps Triggered 5 | . 2 1 . . . 2 . . . . . Indirectly . | . . . . . . . . . . . . Trap Hack Attempts . | . . . . . . . . . . . . Triggered . | . . . . . . . . . . . . Disarmed . | . . . . . . . . . . . . Reprogrammed . | . . . . . . . . . . . . Reused . | . . . . . . . . . . . . Traps Extracted . | . . . . . . . . . . . . Installed . | . . . . . . . . . . . . Triggered 5 | . . . . . 3 . 2 . . . . Machines | -11 -10 -9 -9 -7 -6 -6 -6 -6 -6 -5 -5 ---------- Run | Jun Mat Mat Min Zio Pro Fac Low Low Dat Pro Fac Machines Disabled 4 | . . 3 . . . . . . . 1 . Max in Single Turn 1 | . . 1 . . . . . . . . . Machines Repaired . | . . . . . . . . . . . . Machines Sabotaged . | . . . . . . . . . . . . Overloaded Fab Kills . | . . . . . . . . . . . . Hacking | -11 -10 -9 -9 -7 -6 -6 -6 -6 -6 -5 -5 --------- Run | Jun Mat Mat Min Zio Pro Fac Low Low Dat Pro Fac Machines Accessed 27 | . 9 9 . 1 . . 3 . 4 . 1 Terminals 18 | . 8 9 . . . . 1 . . . . Fabricators . | . . . . . . . . . . . . Repair Stations . | . . . . . . . . . . . . Recycling Units 2 | . 1 . . . . . . . . . 1 Scanalyzers . | . . . . . . . . . . . . Garrison Access . | . . . . . . . . . . . . Total Hacks 97 | . 30 27 . 5 . . 4 . 29 . 2 Successful 75 | . 18 17 . 5 . . 4 . 29 . 2 Failed 21 | . 11 10 . . . . . . . . . Catastrophic 1 | . . 1 . . . . . . . . . Database Lockouts 1 | . 1 . . . . . . . . . . Manual 36 | . 21 14 . . . . . . . . 1 Terminals 58 | . 29 27 . . . . 2 . . . . Fabricators . | . . . . . . . . . . . . Repair Stations . | . . . . . . . . . . . . Recycling Units 3 | . 1 . . . . . . . . . 2 Scanalyzers . | . . . . . . . . . . . . Garrison Access . | . . . . . . . . . . . . Terminal Hacks 52 | . 7 7 . 5 . . 4 . 29 . . Record 13 | . . . . . . . 2 . 11 . . Part Schematic 16 | . . . . 5 . . . . 11 . . Robot Schematic 4 | . . . . . . . . . 4 . . Robot Analysis 2 | . 2 . . . . . . . . . . Prototype ID Bank 3 | . . . . . . . . . 3 . . Open Door 2 | . . . . . . . 2 . . . . Terminal Index 1 | . 1 . . . . . . . . . . Unreport Threat 3 | . 1 2 . . . . . . . . . Locate Traps 1 | . . 1 . . . . . . . . . Security Status 1 | . . 1 . . . . . . . . . Reinforcement Status 1 | . 1 . . . . . . . . . . Hauler Manifests 3 | . 1 2 . . . . . . . . . Registered Components 2 | . 1 1 . . . . . . . . . Fabricator Hacks . | . . . . . . . . . . . . Repair Station Hacks . | . . . . . . . . . . . . Recycling Unit Hacks 2 | . 1 . . . . . . . . . 1 Report Inventory 2 | . 1 . . . . . . . . . 1 Scanalyzer . | . . . . . . . . . . . . Garrison Access Hacks . | . . . . . . . . . . . . Unauthorized Hacks 20 | . 9 10 . . . . . . . . 1 Terminals 19 | . 9 10 . . . . . . . . . Assimilate 3 | . . 3 . . . . . . . . . Botnet 14 | . 7 7 . . . . . . . . . Operators 2 | . 2 . . . . . . . . . . Fabricators . | . . . . . . . . . . . . Repair Stations . | . . . . . . . . . . . . Recycling Units 1 | . . . . . . . . . . . 1 Mask 1 | . . . . . . . . . . . 1 Scanalyzers . | . . . . . . . . . . . . Garrison Access . | . . . . . . . . . . . . Data Cores Recovered 2 | . . 2 . . . . . . . . . Used . | . . . . . . . . . . . . Hacking Detections 14 | . 7 6 . . . . . . . . 1 Full Trace Events . | . . . . . . . . . . . . Feedback Events . | . . . . . . . . . . . . Feedback Blocked . | . . . . . . . . . . . . Robot Schematics Acquired 8 | . . . . 4 . . . . 4 . . Robots Built . | . . . . . . . . . . . . Authchips . | . . . . . . . . . . . . Time . | . . . . . . . . . . . . Total Robot Build Rating . | . . . . . . . . . . . . Part Schematics Acquired 30 | . . . . 19 . . . . 11 . . Parts Built . | . . . . . . . . . . . . Authchips . | . . . . . . . . . . . . Time . | . . . . . . . . . . . . Total Part Build Rating . | . . . . . . . . . . . . Parts Repaired . | . . . . . . . . . . . . Time . | . . . . . . . . . . . . Parts Recycled . | . . . . . . . . . . . . Recycled Matter . | . . . . . . . . . . . . Retrieved Matter . | . . . . . . . . . . . . Retrieved Components . | . . . . . . . . . . . . Parts Scanalyzed . | . . . . . . . . . . . . Part Schematics Acquired . | . . . . . . . . . . . . Parts Damaged . | . . . . . . . . . . . . Bothacking | -11 -10 -9 -9 -7 -6 -6 -6 -6 -6 -5 -5 ------------ Run | Jun Mat Mat Min Zio Pro Fac Low Low Dat Pro Fac Used RIF Installer . | . . . . . . . . . . . . Robots Hacked 2 | . . 2 . . . . . . . . . Non-combat 2 | . . 2 . . . . . . . . . Combat . | . . . . . . . . . . . . Robot Hacks Applied 2 | . . 2 . . . . . . . . . parse_system 1 | . . 1 . . . . . . . . . find_recycling 1 | . . 1 . . . . . . . . . Relay Couplers Released . | . . . . . . . . . . . . Fabnet Peak Effective % . | . . . . . . . . . . . . Robots Rewired 2 | . . . . . 1 . . . . 1 . Allies Hacked . | . . . . . . . . . . . . Hacks Repelled . | . . . . . . . . . . . . Allies | -11 -10 -9 -9 -7 -6 -6 -6 -6 -6 -5 -5 -------- Run | Jun Mat Mat Min Zio Pro Fac Low Low Dat Pro Fac Total Allies 11 | . . 1 . 7 1 . . . . 2 . Largest Group 7 | . . 1 . 7 7 . . . . 2 . Highest-Rated Group 219 | . . 10 . 219 219 . . . . 145 . Highest-Rated Ally 96 | . . 10 . 39 39 . . . . 96 . Total Orders 1 | . . . . . . . . . . . 1 RETURN 1 | . . . . . . . . . . . 1 Ally Attacks 87 | . . . . . 60 . . . . 27 . Total Damage 2322 | . . . . . 1221 . . . . 1101 . Kills 20 | . . . . . 11 . . . . 9 . Allies Corrupted . | . . . . . . . . . . . . Allies Melted . | . . . . . . . . . . . . Intel | -11 -10 -9 -9 -7 -6 -6 -6 -6 -6 -5 -5 ------- Run | Jun Mat Mat Min Zio Pro Fac Low Low Dat Pro Fac Robot Analysis Total 2 | . 2 . . . . . . . . . . Derelict Logs Recovered 10 | . . . 2 1 1 . 2 1 . 3 . Drone Launches 5 | . . . . . . . . . . 2 3 Drone Recoveries 3 | . . . . . . . . . . . 3 Exploration | -11 -10 -9 -9 -7 -6 -6 -6 -6 -6 -5 -5 ------------- Run | Jun Mat Mat Min Zio Pro Fac Low Low Dat Pro Fac Turns Passed 17275 | 265 1798 2428 101 4600 2379 742 1381 1198 144 1833 406 Spaces Moved 7557 | 143 828 1114 43 1728 628 310 868 724 91 863 217 Core 23 | 21 . . . . . . . . . . 2 Treads 3008 | 122 252 812 43 1395 1 16 . . . 364 3 Legs 614 | . 576 38 . . . . . . . . . Wheels 3899 | . . 264 . 333 627 294 868 724 91 499 199 Hover . | . . . . . . . . . . . . Flight 13 | . . . . . . . . . . . 13 Fastest Speed 40 | 50 160 120 240 160 345 145 145 160 160 160 40 Average Speed 211 | 143 181 186 240 263 364 195 155 160 160 195 148 Slowest Speed 800 | 160 260 240 240 480 800 325 160 160 160 245 240 Overloaded Moves . | . . . . . . . . . . . . Propulsion Burnouts . | . . . . . . . . . . . . Robots Hopped 6 | . . . . . . . 5 . . 1 . Cave-ins Triggered . | . . . . . . . . . . . . Exploration Rate (%) 56 | 8 89 81 11 90 74 7 79 76 72 83 2 Regions Visited 11 Branch Regions 7 Pre-discovered Areas 6 | . . . 1 2 1 . . . 1 1 . Known Exits Taken 6 | . . . . 1 . 1 1 1 1 1 . Unknown Exits Taken 5 | 1 1 1 1 . 1 . . . . . . Scrap Searched 15 | . . . 1 3 1 . 3 2 . 5 . Spaces Dug 18 | . 7 . . . . . 1 . . 9 1 Terrain Destroyed 232 | . 7 42 . . 7 6 1 . . 148 21 Melee . | . . . . . . . . . . . . Projectile 40 | . 7 2 . . 7 6 1 . . 15 2 AOE 192 | . . 40 . . . . . . . 133 19 Terrain Rammed . | . . . . . . . . . . . . Walls Destroyed . | . . . . . . . . . . . . Machines Disabled . | . . . . . . . . . . . . Actions | -11 -10 -9 -9 -7 -6 -6 -6 -6 -6 -5 -5 --------- Run | Jun Mat Mat Min Zio Pro Fac Low Low Dat Pro Fac Total 8409 | 180 1025 1331 42 1771 670 415 889 753 90 946 297 Wait 254 | 3 87 71 . 3 2 7 . 20 . 15 46 Move 7534 | 142 827 1113 42 1727 627 309 857 723 90 860 217 Hop 6 | . . . . . . . 5 . . 1 . Pick Up 151 | 13 23 26 . 25 11 38 5 1 . 6 3 Fast Attach 19 | 3 . 1 . 2 . 3 4 . . 4 2 Attach 33 | 4 4 6 . 1 . 11 2 . . . 5 Detach 2 | . . . . . . . 1 . . . 1 Swap 72 | 1 9 19 . 4 2 12 1 4 . 17 3 Drop 107 | 2 16 28 . 6 3 14 9 1 . 12 16 Fire 201 | 12 59 54 . 3 21 13 5 4 . 26 4 Melee 13 | . . 13 . . . . . . . . . Ram . | . . . . . . . . . . . . Kick . | . . . . . . . . . . . . Crush . | . . . . . . . . . . . . Escape Stasis 8 | . . . . . . 8 . . . . . Rewire 9 | . . . . . 4 . . . . 5 . Trap . | . . . . . . . . . . . . Miscellaneous . | . . . . . . . . . . . . Route ------- -11/Junkyard -10/Materials (discovered 4 exits: *Mat x2 / [*Min x2]) -9/Materials (discovered 4 exits: *Mat x3 / [*Min]) -9/Mines (discovered 3 exits: Mat x2 / *Zio) -7/Zion -6/Proximity Caves -6/Factory (discovered 4 exits: Fac x2 / *Low x2) -6/Lower Caves -6/Lower Caves (discovered 2 exits: *Fac / *Dat) -6/Data Miner -5/Proximity Caves -5/Factory (discovered 1 exit: Upp) History --------- Turn | Location | Event 6 | -11/Junkyard | Discovered new exit (range 16) 266 | -11/Junkyard | Entered Materials 305 | -10/Materials | Build established: Mutant 587 | -10/Materials | Discovered new exit (range 7) 999 | -10/Materials | Discovered new exit (range 12) 1378 | -10/Materials | Discovered new exit (range 7) 1577 | -10/Materials | Central database locked down 1615 | -10/Materials | Discovered new exit (range 16) 1692 | -10/Materials | Build established: Scavenger-Mutant 2064 | -10/Materials | Entered another Materials area 2064 | -9/Materials | Evolved 2 slots: Weapon x2 2531 | -9/Materials | Discovered new exit (range 8) 2670 | -9/Materials | Build established: Scavenger-Tank 3060 | -9/Materials | Discovered new exit (range 11) 3223 | -9/Materials | Discovered new exit (range 13) 3567 | -9/Materials | Discovered new exit (range 12) 3936 | -9/Materials | Build established: Tank 4290 | -9/Materials | Build established: Scavenger-Tank 4492 | -9/Materials | Entered Mines 4493 | -9/Mines | Learned location of Storage (-8) 4536 | -9/Mines | Identified exit to Materials 4582 | -9/Mines | A Derelict revealed a hidden shortcut to a safe place 4593 | -9/Mines | Entered Zion 4838 | -7/Zion | Learned location of Data Miner (-6) 4949 | -7/Zion | Learned 12 Factory zone layouts 5061 | -7/Zion | Given A8's code to call for help 5155 | -7/Zion | Found GAL Module 5396 | -7/Zion | Learned location of Quarantine (-3) 5691 | -7/Zion | Found CR-A16's Pointy Stick 6481 | -7/Zion | Imprinted 6484 | -7/Zion | Declared Zion's savior 6630 | -7/Zion | Gained Derelict followers 7218 | -7/Zion | Identified exit to Proximity Caves 7865 | -7/Zion | Build established: Scavenger-Mutant 8222 | -7/Zion | Build established: Hauler-Gunner 8490 | -7/Zion | Found Relay Coupler [Programmer] 8494 | -7/Zion | Found Relay Coupler [Programmer] 8510 | -7/Zion | Found Relay Coupler [Programmer] 8514 | -7/Zion | Found Relay Coupler [Programmer] 8519 | -7/Zion | Found Relay Coupler [Programmer] 9193 | -7/Zion | Entered Proximity Caves 9193 | -6/Proximity Caves | Accompanied by 7 allies 9749 | -6/Proximity Caves | Attracted the attention of an 0b10 outpost 10048 | -6/Proximity Caves | Learned location of Extension (-4) 11027 | -6/Proximity Caves | Attracted the attention of an 0b10 checkpoint 11193 | -6/Proximity Caves | Discovered new exit (range 11) 11414 | -6/Proximity Caves | Spotted B-75 Beast 11415 | -6/Proximity Caves | Core integrity fell below 50% 11572 | -6/Proximity Caves | Entered Factory 11572 | -6/Factory | Evolved 6 slots: Propulsion x2, Utility x4 11573 | -6/Factory | Identified exit to Lower Caves 11573 | -6/Factory | Identified exit to Factory 11999 | -6/Factory | Discovered exit to Lower Caves (range 15) 12298 | -6/Factory | Build established: Scavenger-Skirmisher 12314 | -6/Factory | Entered Lower Caves 12323 | -6/Lower Caves | Learned Factory stockpile data 12425 | -6/Lower Caves | Learned Factory stockpile data 12525 | -6/Lower Caves | Encountered a Warlord checkpoint 12657 | -6/Lower Caves | Found Alien Artifact 12658 | -6/Lower Caves | Identified Core Expander 12658 | -6/Lower Caves | Installed Core Expander, added new Utility slot 12704 | -6/Lower Caves | Discovered new exit (range 10) 12746 | -6/Lower Caves | Found Prototype Device 12748 | -6/Lower Caves | Identified Heart of Steel 12826 | -6/Lower Caves | Identified exit to Lower Caves 13038 | -6/Lower Caves | Build established: Scavenger-Mutant 13695 | -6/Lower Caves | Entered another Lower Caves area 13764 | -6/Lower Caves | Discovered exit to Factory (range 12) 14189 | -6/Lower Caves | Attracted the attention of an 0b10 checkpoint 14304 | -6/Lower Caves | Build established: Scavenger-Tank 14379 | -6/Lower Caves | Learned 4 Factory zone layouts 14738 | -6/Lower Caves | Discovered new exit (range 11) 14751 | -6/Lower Caves | Identified exit to Data Miner 14893 | -6/Lower Caves | Entered Data Miner 14893 | -6/Data Miner | Discovered new exit (range 6) 14924 | -6/Data Miner | Met Data Miner 14962 | -6/Data Miner | Learned location of Section 7 (-2) 14962 | -6/Data Miner | Acquired the access code to Warlord's prototype stash 14988 | -6/Data Miner | Received God Mode back door access code from Data Miner 15033 | -6/Data Miner | Identified exit to Proximity Caves 15037 | -6/Data Miner | Entered Proximity Caves 15045 | -5/Proximity Caves | Spotter reported a threat 15138 | -5/Proximity Caves | Unaware initiated a cargo recovery operation 15343 | -5/Proximity Caves | Build established: Scavenger-Mutant 15448 | -5/Proximity Caves | Escorted by Enhanced Grunt 15474 | -5/Proximity Caves | Attracted the attention of an 0b10 checkpoint 15713 | -5/Proximity Caves | Attracted the attention of an 0b10 outpost 15776 | -5/Proximity Caves | Build established: Scavenger-Tank 16487 | -5/Proximity Caves | Learned 4 Factory zone layouts 16769 | -5/Proximity Caves | Learned Factory stockpile data 16810 | -5/Proximity Caves | Discovered exit to Factory (range 11) 16870 | -5/Proximity Caves | Entered Factory 16870 | -5/Factory | Evolved 2 slots: Utility x2 16871 | -5/Factory | Identified exit to Upper Caves 17276 | -5/Factory | Self-destructed Last Messages --------------- 17222_ Dropped Heart of Steel. 17223_ Dropped Huge Storage Unit. 17224_ Dropped Greatsword. 17224_ Dropped Rnf. Deuterium Engine. 17225_ Dropped Imp. Treads. 17225_ Dropped Com. Wheel. 17226_ Dropped Battle Rifle. 17233_ Acquired Rnf. Deuterium Engine. 17241_ Dropped Med. Treads. 17242_ Dropped Com. Wheel. 17242_ Dropped Imp. Sensor Array. 17243_ Dropped Mak. Armor Plating. 17244_ Dropped Barrage Gun. 17245_ Dropped Railgun. 17246_ Dropped Rnf. Deuterium Engine. 17246_ Dropped Imp. Hardlight Generator. 17249_ Acquired Xenon Bombardment Thruster. 17253_ Acquired Mic. Fission Core. 17257_ Acquired Com. Wheel. 17262_ Dropped Com. Wheel. Map ----- +----------------------------------------------------+ | | | | | | | | | | | | | | | | | | | ?????##?#####################??#???##??????#?#?##? | | ????#?#?### ######?##?#?#######??#??#? | | ###?####### ########?###? ? | | ?#?####?### ###?######### ?? ?? | | #??###?#### +? ?? ?? | | ####?##?#?# ######### ?? ? | | ?###?#??### ## # """" """" ?? ? | | ########?## # """" # """" """" | | #####?###?# ## """" # """" """" | | ?####??#### ## """" # | | ##?#####?## # """" + | | ?#?#?###### # # #######""" """## | | ############# # # # ######;## ###?###"""T"???? | | ?##?## """=""" ### ##########??#?## | | ??#### # """="""*#?# #######?#####?#? | | ##?### # """="""!### ########?###???? | | ####?# + ]!!@ /=!#?# ##########??##?? | | #?#### ] ]] # ][]!!=[### ###?#?##??##???? | | ###?## ]] # # ]!&! [[### ###########?##?? | | ##???# ! ] # # [/"Y"!### #######?######?? | | ###### ####### """ ###+##########?#???? | | #??#?# ####?############?? ##??####????? | | ?##############?############### ? ? #?####?????? | | ########?####?###?############# ? ##??###?#???? | | ####?########################## ###?###?????? | | ####?#?#?####################?# ? ?##?##?#????? | | #??##?#?####?#?################ ? ####????????? | | ###??#?#?#??###?############?###??###?#??# ??????? | | ?###??##?####?#########################??? ??????? | | ??######?##?##################?##?#?##?#?????????? | | ????#?#?#########??########?###??##?###??????????? | | ???###??#???#??############?#????#?#??#??????????? | | ???? ? ? ####?#?######????###??##???????????? | | ??????"? ? ? ?#?#?#?#?#####???##?#??????????????? | | ?????"????? ? ???##???###??#??#????#?????????????? | | ??????? ????????#???????#???###??????????????????? | | ?????????????????????????????????????????????????? | | ?????????????????????????????????????????????????? | | ?????????????????????????????????????????????????? | | ?????????????????????????????????????????????????? | | ?????????????????????????????????????????????????? | +----------------------------------------------------+ Best States ------------- Heat Dissipation 40 Energy Generation 18 Energy Capacity 300 Matter Stores 300 Matter Capacity 300 Sight Range 16 Robot Scan Range 15 Terrain Scan Range 16 Terrain Scan Density 10 Jamming Range 12 Armor Coverage 375 Resistance: KI 25 Weapon Cycling 15 Evasion (%) 50 Recoil Reduction 4 Offensive Hacking 20 Item Schematics ----------------- Battle Rifle | -7/Zion | Free Battle Cannon | -7/Zion | Free Slug Cannon | -7/Zion | Free Flamer | -7/Zion | Free Enh. Flamer | -7/Zion | Free Gauss Rifle | -7/Zion | Archive Remote Shield | -7/Zion | Archive Coolant Injector | -7/Zion | Archive Coil Gun | -7/Zion | Archive Xenon Bombardment Thruster | -7/Zion | Archive Hyp. Gauss Rifle | -7/Zion | Archive Imp. Shock Absorption System | -7/Zion | Archive Arm. Medium Treads | -7/Zion | Archive Plasma Cannon | -7/Zion | Archive Fusion Compressor | -7/Zion | Archive Imp. Medium Treads | -7/Zion | Archive Mak. Shrapnel Gun | -7/Zion | Archive Mak. Laser | -7/Zion | Archive Plasma Flamer | -7/Zion | Archive Combat Drone Bay | -6/Data Miner | Free Lgt. Regenerative Plating | -6/Data Miner | Free Cld. Gravmag System | -6/Data Miner | Free Imp. Thermal Defense Suite | -6/Data Miner | Free Tiamat Missile Launcher | -6/Data Miner | Free Graphene Brace | -6/Data Miner | Free Adv. Medium Treads | -6/Data Miner | Free Matter Neutralizer | -6/Data Miner | Free Adv. Cooling System | -6/Data Miner | Free Lrn. Sensor Array | -6/Data Miner | Free Antimissile System | -6/Data Miner | Free Robot Schematics ------------------ M-14 Sweeper | -7/Zion | Archive T-07 Excavator | -7/Zion | Archive B-36 Bruiser | -7/Zion | Archive H-77 Assassin | -7/Zion | Archive B-60 Warrior | -6/Data Miner | Free I-36 Angel | -6/Data Miner | Free G-50 Soldier | -6/Data Miner | Free H-66 Slayer | -6/Data Miner | Free Fabricated ------------ Nothing Alien Tech Used ----------------- Core Expander Achievements -------------- None Challenges ------------ None Game ------ Seed AssaultIonLeg Manual? 0 Play Time 02:25:21 Cumulative 97.4 hours Start 2023.03.24 @ 02:29:21 End 2023.04.30 @ 10:11:42 Sessions 6 Manual Loads 0 Difficulty Rogue Special Mode None Game No. 26 Rogue 26 Adventurer 0 Explorer 0 Win Type - Total 4 Types 4/0/0/0/0/0/0/0/0 Lore% 29 Gallery% 48 Achievement% 40 Wizard Run 0 Options --------- ASCII 0 Keyboard 0 Movement Mouse Keybinds 0 Fullscreen 1 Font 18/SmallcapsGlow Map View 76x50 Tactical HUD 1 Map Filters NONE Filters NONE Steam 1 RUN: 499cb77c-105d-4b63-9fc2-fecc13ca196b